bitfinex-derivatives/quotes_SOLF0:USTF0_20250514
["timestamp","ask_amount","ask_price","bid_price","bid_amount"]
[1747235198469,97.0188,176.07,175.96,5.5318]
[1747235198663,91.0,176.09,175.96,5.5318]
[1747235198858,91.0,176.1,175.96,5.5318]
[1747235199058,5.6782,176.09,175.96,5.5318]
[1747235199364,91.0,176.1,175.96,5.5318]
[1747235200165,5.6783,176.08,175.96,5.5318]
[1747235200365,91.0,176.1,175.96,5.5318]
[1747235200667,90.68,176.1,175.96,5.5318]
[1747235201168,5.6787,176.07,176.03,5.6797]
[1747235201369,90.68,176.1,176.02,92.46]
[1747235202262,96.358,176.1,176.07,5.6786]
[1747235202467,90.68,176.1,176.02,92.46]
[1747235202664,11.34391616,176.13,176.02,92.46]
[1747235202971,90.18,176.12,176.06,5.6789]
[1747235203158,90.18,176.12,176.02,92.46]
[1747235203363,11.34391616,176.13,176.07,5.6785]
[1747235203559,90.06,176.12,176.02,92.46]
[1747235204572,92.46,176.17,176.02,103.80391616]
[1747235204866,89.72,176.18,176.02,103.80391616]
[1747235205369,89.72,176.18,176.03,11.3599]
[1747235205569,89.72,176.18,176.04,490.9]
[1747235205762,5.6758,176.16,176.04,586.0931]
[1747235205957,89.72,176.18,176.04,586.0931]
[1747235206268,5.6764,176.15,176.12,5.6768]
[1747235206464,89.72,176.18,176.12,5.6768]
[1747235206766,5.676,176.16,176.1,92.44]
[1747235206960,89.72,176.18,176.1,92.44]
[1747235208168,89.72,176.18,176.11,5.6773]
[1747235208370,89.72,176.18,176.1,92.44]
[1747235208764,5.6758,176.16,176.13,5.6765]
[1747235208968,89.72,176.18,176.1,92.44]
[1747235209363,89.72,176.18,176.11,5.6773]
[1747235209569,89.72,176.18,176.1,92.44]
[1747235209766,89.72,176.18,176.04,584.0058]
[1747235209967,11.34391616,176.15,176.04,580.24]
[1747235210970,88.4,176.14,176.04,580.24]
[1747235211170,5.6776,176.11,176.07,5.6786]
[1747235211573,5.6776,176.11,176.04,580.24]
[1747235211574,88.4,176.14,176.04,580.24]
[1747235211766,10.0,176.2,176.04,580.24]
[1747235211968,177.48,176.19,176.04,580.24]
[1747235212567,5.6761,176.15,176.11,5.6772]
[1747235212773,5.6761,176.15,176.04,580.24]
[1747235212774,177.48,176.19,176.04,580.24]
[1747235212974,11.34391616,176.18,176.04,580.24]
[1747235213374,11.34391616,176.14,176.04,580.24]
[1747235213674,93.2563,176.13,176.05,5.6791]
[1747235214169,93.2563,176.13,176.04,585.9195]
[1747235214471,93.2563,176.13,176.04,580.24]
[1747235214677,182.5963,176.13,176.04,89.34]
[1747235214872,5.6782,176.09,176.04,95.0196]
[1747235215177,182.5963,176.13,176.04,89.34]
[1747235215371,182.5963,176.13,176.04,95.0196]
[1747235215571,182.5963,176.13,176.04,89.34]
[1747235216071,87.44,176.12,176.04,89.34]
[1747235216377,5.6776,176.11,176.06,5.6788]
[1747235216570,5.6776,176.11,176.04,89.34]
[1747235216571,87.44,176.12,176.04,89.34]
[1747235216972,87.44,176.12,176.05,5.6792]
[1747235217373,5.6779,176.1,176.06,5.6788]
[1747235217672,87.44,176.12,176.04,89.34]
[1747235217975,5.6777,176.1,176.06,5.6787]
[1747235218176,87.44,176.12,176.04,89.34]
[1747235218477,87.44,176.12,176.04,95.0194]
[1747235218673,87.44,176.12,176.04,89.34]
[1747235218870,87.44,176.12,176.0,3.6653]
[1747235219276,92.2963,176.13,176.0,3.6653]
[1747235219473,88.641,176.13,176.0,3.6653]
[1747235221677,1.821,176.13,176.0,3.6653]
[1747235221982,3.8153,176.17,176.01,86.44]
[1747235221983,86.44,176.16,176.01,86.44]
[1747235222280,86.44,176.16,176.03,11.3596]
[1747235222470,3.8153,176.17,176.03,11.3596]
[1747235222670,90.1153,176.17,176.04,11.3591]
[1747235222875,90.1153,176.17,176.05,86.4]
[1747235223075,3.8153,176.17,176.05,86.4]
[1747235223281,88.0645,176.19,176.05,86.4]
[1747235223676,15.09031616,176.23,176.07,11.34391616]
[1747235223878,86.12,176.21,176.08,91.6606]
[1747235224381,86.12,176.21,176.11,11.34391616]
[1747235224580,118.63654192,176.24,176.12,86.4]
[1747235224973,86.06,176.26,176.15,11.34391616]
[1747235225179,86.06,176.26,176.16,89.7228]
[1747235225478,1.9247,176.3,176.16,89.7228]
[1747235225782,86.0,176.29,176.17,1.8675]
[1747235225986,86.0,176.29,176.21,5.674]
[1747235226179,97.34391616,176.29,176.17,86.4]
[1747235226383,5.6738,176.23,176.17,92.0754]
[1747235226583,97.34391616,176.29,176.17,86.4]
[1747235227985,5.6745,176.2,176.17,86.4]
[1747235228281,85.52,176.22,176.12,86.38]
[1747235228484,7.4867,176.21,176.16,5.6755]
[1747235228689,1.8126,176.21,176.12,86.38]
[1747235229079,7.487,176.21,176.12,86.38]
[1747235229586,5.6748,176.19,176.12,86.38]
[1747235229780,1.8126,176.21,176.12,86.38]
[1747235230084,7.4869,176.21,176.12,86.38]
[1747235230286,1.8126,176.21,176.12,86.38]
[1747235230487,87.6609,176.23,176.12,86.38]
[1747235230689,5.6744,176.21,176.12,86.38]
[1747235230986,87.6609,176.23,176.12,86.38]
[1747235231187,5.6746,176.2,176.15,5.6759]
[1747235231383,5.6746,176.2,176.12,86.38]
[1747235231583,87.6609,176.23,176.12,86.38]
[1747235232189,5.6744,176.21,176.17,5.6752]
[1747235232488,5.6744,176.21,176.12,86.38]
[1747235232791,87.6609,176.23,176.12,86.38]
[1747235233288,87.6609,176.23,176.15,5.6759]
[1747235233482,87.6609,176.23,176.12,86.38]
[1747235234389,5.6746,176.2,176.15,5.6761]
[1747235234989,87.6609,176.23,176.15,5.6761]
[1747235234990,5.6749,176.19,176.15,5.6761]
[1747235235191,87.6609,176.23,176.15,5.6761]
[1747235235489,86.36,176.22,175.96,490.56]
[1747235235691,11.34391616,176.18,176.0,92.0213]
[1747235235882,84.56,176.17,176.0,92.0213]
[1747235236578,3.698,176.16,176.0,92.0213]
[1747235237488,3.698,176.16,176.01,11.3611]
[1747235237689,5.6768,176.13,176.1,5.6776]
[1747235237991,3.698,176.16,176.07,86.38]
[1747235238185,3.698,176.16,176.05,86.38]
[1747235239085,83.92,176.19,176.05,97.72391616]
[1747235239284,89.595,176.19,176.05,97.72391616]
[1747235239488,83.92,176.19,176.05,97.72391616]
[1747235239688,83.92,176.19,176.05,109.08201616]
[1747235239889,83.92,176.19,176.05,97.72391616]
[1747235240184,5.5435,176.23,176.05,97.72391616]
[1747235240384,83.66,176.22,176.09,11.34391616]
[1747235240583,83.66,176.22,176.1,89.292]
[1747235240780,83.66,176.22,176.11,86.38]
[1747235240980,5.5435,176.23,176.11,86.38]
[1747235241181,5.6743,176.21,176.11,86.38]
[1747235241791,5.6743,176.21,176.17,5.6754]
[1747235242278,5.6745,176.2,176.17,5.6754]
[1747235242483,89.0635,176.23,176.17,5.6754]
[1747235242679,89.0635,176.23,176.11,86.38]
[1747235242981,85.4113,176.23,176.11,86.38]
[1747235243187,85.4113,176.23,176.18,5.675]
[1747235243389,85.4113,176.23,176.11,86.38]
[1747235243584,85.4113,176.23,176.15,5.6759]
[1747235243885,5.675,176.19,176.11,86.38]
[1747235244086,85.4113,176.23,176.17,5.6754]
[1747235244283,85.4113,176.23,176.11,86.38]
[1747235244488,5.6739,176.22,176.11,86.38]
[1747235244683,83.16,176.24,176.11,86.38]
[1747235245190,83.18,176.25,176.11,86.38]
[1747235245692,1.7679,176.27,176.11,86.38]
[1747235245989,82.98,176.29,176.14,11.34391616]
[1747235246188,82.98,176.29,176.25,5.6726]
[1747235246383,82.98,176.29,176.21,83.5]
[1747235246586,83.1,176.3,176.21,83.5]
[1747235246986,88.7713,176.3,176.21,83.5]
[1747235247187,83.1,176.3,176.21,83.5]
[1747235247685,88.7713,176.3,176.21,83.5]
[1747235248091,83.1,176.3,176.21,83.5]
[1747235248494,83.1,176.3,176.19,1.7975]
[1747235248695,5.6726,176.26,176.22,5.6738]
[1747235248897,83.1,176.3,176.17,83.5]
[1747235249294,5.6723,176.27,176.24,5.6732]
[1747235249495,5.6723,176.27,176.17,83.5]
[1747235250697,82.56,176.28,176.17,83.5]
[1747235250894,93.90391616,176.28,176.17,83.5]
[1747235251295,5.6743,176.21,176.17,83.5]
[1747235251499,93.90391616,176.28,176.17,83.5]
[1747235251701,83.48,176.27,176.18,5.6751]
[1747235251894,83.48,176.27,176.17,83.5]
[1747235252299,5.6731,176.25,176.17,83.5]
[1747235252489,88.0931,176.25,176.17,83.5]
[1747235252798,82.42,176.25,176.17,83.5]
[1747235253202,13.11181616,176.32,176.17,83.5]
[1747235253493,82.24,176.31,176.25,5.6728]
[1747235253692,82.24,176.31,176.18,1.806]
[1747235253886,5.672,176.28,176.24,5.673]
[1747235254094,82.24,176.31,176.18,1.806]
[1747235254498,11.34391616,176.3,176.18,1.806]
[1747235254695,11.34391616,176.3,176.17,83.5]
[1747235254897,83.48,176.29,176.17,83.5]
[1747235255298,83.48,176.29,176.19,5.6748]
[1747235255498,83.48,176.29,176.17,83.5]
[1747235255701,5.6734,176.24,176.19,5.6745]
[1747235256000,11.34391616,176.3,176.17,83.5]
[1747235256198,81.78,176.29,176.17,83.5]
[1747235256399,5.6726,176.26,176.22,5.6737]
[1747235256604,81.72,176.28,176.17,83.5]
[1747235256901,81.72,176.28,176.18,5.675]
[1747235256902,11.34391616,176.26,176.18,5.675]
[1747235257295,1.7727,176.25,176.15,83.48]
[1747235257501,5.4147,176.25,176.15,83.48]
[1747235257694,5.6738,176.22,176.18,5.6748]
[1747235257897,5.4147,176.25,176.15,83.48]
[1747235258293,5.6741,176.22,176.15,83.48]
[1747235258497,81.44,176.22,176.15,83.48]
[1747235259096,5.4147,176.25,176.15,83.48]
[1747235259301,81.2,176.27,176.15,83.48]
[1747235259503,86.8723,176.27,176.22,5.6736]
[1747235259906,5.6727,176.26,176.21,5.6741]
[1747235260108,81.2,176.27,176.21,5.6741]
[1747235260310,81.2,176.27,176.15,83.48]
[1747235260502,5.6726,176.26,176.22,5.6736]
[1747235260998,81.2,176.27,176.15,83.48]
[1747235262007,5.6732,176.24,176.2,5.6742]
[1747235262205,81.2,176.27,176.15,83.48]
[1747235262610,5.6734,176.24,176.2,5.6743]
[1747235262809,81.2,176.27,176.2,5.6743]
[1747235263009,13.10861616,176.31,176.15,83.48]
[1747235263212,5.672,176.28,176.24,5.6731]
[1747235263510,80.54,176.3,176.2,80.58]
[1747235263709,5.6728,176.26,176.21,5.674]
[1747235264118,5.6728,176.26,176.2,80.58]
[1747235264714,5.6722,176.27,176.23,5.6735]
[1747235264914,5.6722,176.27,176.2,80.58]
[1747235265122,80.54,176.3,176.2,80.58]
[1747235265311,5.6722,176.27,176.22,5.6737]
[1747235265510,5.6722,176.27,176.2,80.58]
[1747235265712,80.54,176.3,176.2,80.58]
[1747235265913,85.7116,176.29,176.25,5.6728]
[1747235266113,13.10861616,176.31,176.2,80.58]
[1747235266313,79.96,176.3,176.2,80.58]
[1747235266915,10.0,176.32,176.21,3.7592]
[1747235267212,79.88,176.34,176.21,3.7592]
[1747235267414,79.88,176.34,176.21,5.6015]
[1747235268112,80.58,176.36,176.21,5.6015]
[1747235268318,79.64,176.33,176.21,5.6015]
[1747235269607,79.64,176.33,176.28,5.6716]
[1747235269608,5.6708,176.32,176.28,5.6716]
[1747235269820,79.64,176.33,176.28,80.58]
[1747235270319,85.3105,176.33,176.3,5.671]
[1747235270517,79.64,176.33,176.28,80.58]
[1747235270919,79.64,176.33,176.31,5.6706]
[1747235271719,79.64,176.33,176.32,5.6706]
[1747235272416,79.2,176.36,176.3,5.671]
[1747235272821,79.2,176.36,176.29,5.6713]
[1747235273021,79.2,176.36,176.28,80.58]
[1747235273523,79.2,176.36,176.32,5.6705]
[1747235273823,84.6295,176.36,176.32,5.6705]
[1747235274117,84.6295,176.36,176.33,5.6703]
[1747235274118,84.5895,176.36,176.33,5.6703]
[1747235274318,78.92,176.36,176.28,80.58]
[1747235275023,5.6697,176.35,176.28,80.58]
[1747235275219,78.92,176.36,176.32,5.6706]
[1747235275424,78.92,176.36,176.28,80.58]
[1747235275825,95.07504269,176.36,176.29,5.6716]
[1747235276124,5.6705,176.33,176.29,5.6716]
[1747235276520,95.07504269,176.36,176.28,80.58]
[1747235277026,95.07504269,176.36,176.28,86.2518]
[1747235277724,95.07504269,176.36,176.28,80.58]
[1747235278020,96.72599642,176.35,176.24,80.56]
[1747235278221,96.72599642,176.35,176.25,5.6726]
[1747235278421,16.16599642,176.31,176.2,570.92]
[1747235278624,83.9364,176.3,176.2,570.92]
[1747235279425,5.6725,176.26,176.23,5.6735]
[1747235279624,5.6725,176.26,176.2,570.92]
[1747235280125,5.6723,176.27,176.22,5.6735]
[1747235280326,83.9364,176.3,176.2,570.92]
[1747235280623,5.6722,176.27,176.2,570.92]
[1747235281128,83.9364,176.3,176.2,570.92]
[1747235281427,16.16599642,176.27,176.2,80.56]
[1747235281627,16.16599642,176.27,176.16,80.54]
[1747235281825,5.6729,176.25,176.21,5.6739]
[1747235282030,78.06,176.24,176.16,80.54]
[1747235282226,77.98,176.26,176.16,80.54]
[1747235283326,5.6737,176.23,176.16,80.54]
[1747235283733,77.98,176.26,176.16,80.54]
[1747235283935,5.6735,176.23,176.19,5.6746]
[1747235284232,77.98,176.26,176.16,80.54]
[1747235284428,5.6742,176.21,176.17,5.6752]
[1747235284629,77.7,176.2,176.16,80.54]
[1747235285029,77.7,176.2,176.12,77.76]
[1747235286136,83.3747,176.2,176.12,77.76]
[1747235286629,77.7,176.2,176.12,77.76]
[1747235286839,77.7,176.2,176.19,5.6748]
[1747235287732,16.16599642,176.27,176.12,77.76]
[1747235287938,1.7824,176.28,176.13,77.76]
[1747235288237,77.68,176.27,176.14,1.7699]
[1747235288433,77.68,176.27,176.15,77.62]
[1747235288833,83.231,176.31,176.28,5.6717]
[1747235289034,77.56,176.31,176.24,77.76]
[1747235289433,5.6713,176.3,176.26,5.6725]
[1747235289633,5.6713,176.3,176.24,77.76]
[1747235289837,77.56,176.31,176.29,5.6715]
[1747235290039,77.56,176.31,176.24,77.76]
[1747235290641,83.2312,176.31,176.28,5.6719]
[1747235291339,5.6713,176.3,176.24,77.76]
[1747235291731,77.14,176.32,176.24,77.76]
[1747235292238,77.14,176.32,176.27,5.6719]
[1747235292439,5.6712,176.31,176.27,5.6719]
[1747235292833,77.14,176.32,176.24,77.76]
[1747235293037,5.6718,176.29,176.24,77.76]
[1747235293238,77.14,176.32,176.24,77.76]
[1747235293841,5.4248,176.34,176.24,77.76]
[1747235294040,76.8,176.33,176.24,77.76]
[1747235294243,82.4705,176.33,176.24,77.76]
[1747235294440,5.6705,176.33,176.24,77.76]
[1747235294637,82.4305,176.33,176.29,5.6714]
[1747235294837,5.6707,176.32,176.29,5.6714]
[1747235295043,5.4248,176.34,176.24,77.76]
[1747235295244,83.4294,176.36,176.24,77.76]
[1747235295440,76.62,176.35,176.24,77.76]
[1747235295642,76.62,176.35,176.32,5.6704]
[1747235295942,82.2899,176.35,176.29,77.74]
[1747235296136,82.2899,176.35,176.32,5.6705]
[1747235296845,5.6701,176.34,176.29,77.74]
[1747235297140,76.62,176.35,176.22,568.04]
[1747235297337,154.36,176.35,176.22,568.04]
[1747235298343,154.36,176.35,176.28,5.6719]
[1747235298545,5.6709,176.32,176.28,5.6719]
[1747235298844,154.36,176.35,176.22,644.38]
[1747235299040,5.6701,176.34,176.22,644.38]
[1747235299546,5.6704,176.33,176.22,644.38]
[1747235299846,154.36,176.35,176.22,644.38]
[1747235300043,154.36,176.35,176.28,5.6717]
[1747235300247,5.671,176.31,176.22,644.38]
[1747235300446,154.36,176.35,176.29,5.6714]
[1747235300844,5.6704,176.33,176.29,5.6714]
[1747235301248,76.62,176.35,176.27,77.74]
[1747235302243,76.62,176.35,176.31,5.6709]
[1747235302549,82.2899,176.35,176.27,77.74]
[1747235302746,82.2899,176.35,176.31,5.6707]
[1747235303748,76.62,176.35,176.32,5.6706]
[1747235304049,82.2897,176.35,176.31,5.6708]
[1747235304249,82.2897,176.35,176.27,77.74]
[1747235305150,82.2897,176.35,176.32,5.6706]
[1747235305447,76.62,176.35,176.32,5.6706]
[1747235305947,5.6691,176.37,176.33,5.6703]
[1747235306145,75.34,176.38,176.28,1.9342]
[1747235306345,75.34,176.38,176.27,77.72]
[1747235306539,5.6706,176.33,176.29,5.6714]
[1747235306745,75.28,176.32,176.23,77.72]
[1747235307046,1.7865,176.31,176.23,77.72]
[1747235307246,3.7094,176.31,176.24,5.6732]
[1747235308047,3.7094,176.31,176.25,5.6729]
[1747235308252,5.6718,176.29,176.25,5.6729]
[1747235308450,3.7094,176.31,176.23,77.72]
[1747235308750,5.6717,176.29,176.23,77.72]
[1747235309050,5.6717,176.29,176.26,5.6725]
[1747235309250,3.7094,176.31,176.26,5.6725]
[1747235309441,5.6716,176.29,176.23,77.72]
[1747235309647,3.7094,176.31,176.23,77.72]
[1747235310151,1.7865,176.31,176.27,5.6719]
[1747235310348,1.7865,176.31,176.23,77.72]
[1747235310653,7.4576,176.31,176.23,77.72]
[1747235310850,7.4576,176.31,176.27,5.6721]
[1747235311049,1.7865,176.31,176.23,77.72]
[1747235311452,1.7865,176.31,176.27,5.6719]
[1747235311654,1.7865,176.31,176.23,77.72]
[1747235312550,152.34,176.33,176.29,5.6715]
[1747235312855,152.34,176.33,176.23,77.72]
[1747235312856,80.2903,176.33,176.23,77.72]
[1747235313149,74.62,176.33,176.23,77.72]
[1747235313360,5.6718,176.29,176.23,77.72]
[1747235313551,5.6718,176.29,176.25,5.6727]
[1747235313950,5.6718,176.29,176.23,77.72]
[1747235314250,5.672,176.28,176.23,77.72]
[1747235314449,74.62,176.33,176.23,77.72]
[1747235314654,74.62,176.33,176.27,5.6719]
[1747235314655,74.46,176.33,176.27,5.6719]
[1747235314849,74.46,176.33,176.23,77.72]
[1747235315152,74.46,176.33,176.27,5.6721]
[1747235315355,5.6711,176.31,176.23,77.72]
[1747235315549,74.32,176.32,176.23,77.72]
[1747235316251,79.9908,176.32,176.28,5.6717]
[1747235316547,74.32,176.32,176.23,77.72]
[1747235316852,79.9906,176.32,176.29,5.6714]
[1747235317054,74.08,176.34,176.23,77.72]
[1747235317558,5.6706,176.32,176.29,5.6714]
[1747235318161,5.6709,176.31,176.28,5.6718]
[1747235318359,74.08,176.34,176.23,77.72]
[1747235319053,16.16599642,176.32,176.23,77.72]
[1747235319561,74.98,176.31,176.23,77.72]
[1747235319958,3.6099,176.3,176.19,74.98]
[1747235320157,73.76,176.29,176.19,74.98]
[1747235320561,79.4316,176.29,176.19,74.98]
[1747235320861,73.76,176.29,176.19,74.98]
[1747235321261,5.6719,176.28,176.19,74.98]
[1747235321563,73.76,176.29,176.19,74.98]
[1747235321763,5.6722,176.27,176.19,74.98]
[1747235321958,73.76,176.29,176.19,74.98]
[1747235322261,5.6723,176.27,176.23,5.6733]
[1747235322454,73.76,176.29,176.19,74.98]
[1747235322658,16.16599642,176.28,176.19,74.98]
[1747235323361,16.16599642,176.28,176.21,5.6741]
[1747235323563,16.16599642,176.28,176.19,74.98]
[1747235324164,75.6534,176.29,176.19,74.98]
[1747235324664,5.6725,176.27,176.23,5.6735]
[1747235324963,1.8008,176.3,176.19,74.98]
[1747235325165,73.08,176.29,176.19,74.98]
[1747235325366,73.08,176.29,176.24,5.6731]
[1747235325367,5.672,176.28,176.24,5.6731]
[1747235325861,73.08,176.29,176.19,74.98]
[1747235326556,72.86,176.29,176.19,74.98]
[1747235326961,78.5316,176.29,176.25,5.6727]
[1747235327161,72.86,176.29,176.19,74.98]
[1747235327362,78.7665,176.34,176.19,74.98]
[1747235327565,72.72,176.33,176.19,74.98]
[1747235328065,5.6706,176.32,176.29,5.6714]
[1747235328669,5.671,176.31,176.29,5.6714]
[1747235328864,72.72,176.33,176.29,5.6714]
[1747235329067,72.72,176.33,176.3,5.6712]
[1747235329367,72.72,176.33,176.25,75.0]
[1747235329770,75.0,176.38,176.25,75.0]
[1747235329971,78.1291,176.37,176.26,3.7071]
[1747235330164,72.46,176.37,176.26,5.4698]
[1747235330366,5.6695,176.36,176.33,5.6702]
[1747235330967,72.42,176.37,176.32,5.6705]
[1747235331368,5.6694,176.36,176.32,5.6705]
[1747235332170,77.8694,176.36,176.32,5.6705]
[1747235332366,72.2,176.36,176.32,5.6705]
[1747235332968,77.8694,176.36,176.32,5.6705]
[1747235333173,72.2,176.36,176.33,5.67]
[1747235333464,72.2,176.36,176.26,5.4698]
[1747235333669,72.2,176.36,176.34,5.6698]
[1747235333869,72.12,176.37,176.3,72.26]
[1747235334171,5.6693,176.36,176.3,72.26]
[1747235334371,75.0,176.38,176.3,72.26]
[1747235334570,72.12,176.37,176.3,72.26]
[1747235334972,72.12,176.37,176.33,5.67]
[1747235335271,77.7892,176.37,176.3,72.26]
[1747235335573,15.6341,176.39,176.3,72.26]
[1747235335766,72.12,176.38,176.3,72.26]
[1747235336373,10.0,176.39,176.3,72.26]
[1747235337573,72.12,176.39,176.3,72.26]
[1747235337768,5.6691,176.37,176.3,72.26]
[1747235337970,72.12,176.39,176.3,72.26]
[1747235338375,5.6695,176.36,176.32,5.6705]
[1747235338873,72.12,176.39,176.32,5.6705]
[1747235339073,5.6696,176.36,176.32,5.6705]
[1747235339273,72.12,176.39,176.3,72.26]
[1747235339571,5.6702,176.34,176.3,72.26]
[1747235339772,3.7977,176.38,176.3,72.26]
[1747235340171,5.6694,176.36,176.3,72.26]
[1747235340374,1.8764,176.38,176.3,72.26]
[1747235340772,5.6694,176.36,176.3,72.26]
[1747235341081,5.6694,176.36,176.32,5.6703]
[1747235341783,1.8764,176.38,176.3,72.26]
[1747235341976,72.1,176.39,176.3,72.26]
[1747235342376,77.7679,176.41,176.37,5.6688]
[1747235342579,72.1,176.41,176.3,72.26]
[1747235342775,77.7676,176.42,176.38,5.6685]
[1747235343184,72.1,176.42,176.31,11.3419]
[1747235343378,74.2013,176.46,176.3,72.26]
[1747235343379,74.2013,176.46,176.32,72.26]
[1747235343577,72.1,176.46,176.33,75.8029]
[1747235343782,72.1,176.46,176.42,5.6671]
[1747235344078,72.1,176.46,176.39,72.26]
[1747235344275,118.484816,176.47,176.39,72.26]
[1747235344476,190.584816,176.47,176.39,72.26]
[1747235344685,72.1,176.47,176.39,72.26]
[1747235345087,72.26,176.5,176.4,1.8248]
[1747235345284,72.1,176.51,176.4,1.8248]
[1747235346388,5.6656,176.48,176.44,5.6665]
[1747235346686,72.1,176.51,176.4,1.8248]
[1747235346888,5.6654,176.49,176.45,5.6662]
[1747235347286,13.7343,176.52,176.4,1.8248]
[1747235347481,7.6056,176.52,176.48,5.6653]
[1747235347782,74.0213,176.52,176.41,1.8744]
[1747235347988,74.0213,176.52,176.44,5.6666]
[1747235348389,74.0213,176.52,176.42,72.22]
[1747235348589,74.0213,176.52,176.42,74.0846]
[1747235349087,5.6647,176.51,176.42,74.0846]
[1747235349586,79.6856,176.52,176.42,74.0846]
[1747235349786,74.0213,176.52,176.42,74.0846]
[1747235350179,5.6647,176.51,176.47,5.6656]
[1747235350989,5.6649,176.5,176.46,5.6661]
[1747235351187,74.0213,176.52,176.42,74.0846]
[1747235352388,5.6645,176.51,176.47,5.6656]
[1747235352785,10.0,176.57,176.42,74.0846]
[1747235353088,72.04,176.54,176.42,74.0846]
[1747235353487,72.04,176.54,176.48,5.6652]
[1747235353488,5.6644,176.52,176.48,5.6652]
[1747235353682,72.04,176.54,176.47,72.22]
[1747235353879,5.663,176.56,176.52,5.6639]
[1747235354088,72.02,176.56,176.47,72.22]
[1747235354887,72.02,176.56,176.48,1.8853]
[1747235355086,77.6831,176.56,176.52,5.6639]
[1747235355283,72.02,176.56,176.48,1.8853]
[1747235355692,72.02,176.56,176.53,5.6637]
[1747235355996,10.0,176.57,176.53,5.6637]
[1747235356295,72.02,176.58,176.55,5.6631]
[1747235356988,72.02,176.58,176.54,5.6634]
[1747235357292,72.02,176.58,176.48,1.8853]
[1747235357489,72.02,176.58,176.52,5.664]
[1747235357686,72.02,176.58,176.46,72.2]
[1747235357888,1.9081,176.57,176.46,72.2]
[1747235358091,5.6641,176.53,176.46,72.2]
[1747235358292,1.9081,176.57,176.46,72.2]
[1747235358488,5.664,176.53,176.46,72.2]
[1747235358794,5.664,176.53,176.48,5.6654]
[1747235358992,5.664,176.53,176.46,72.2]
[1747235359295,5.6642,176.52,176.46,72.2]
[1747235359493,5.6642,176.52,176.48,5.6652]
[1747235359690,1.9081,176.57,176.46,72.2]
[1747235359892,72.0,176.56,176.46,72.2]
[1747235360593,5.6638,176.54,176.5,5.6648]
[1747235360793,72.0,176.56,176.5,5.6648]
[1747235360992,72.0,176.56,176.46,72.2]
[1747235361691,71.98,176.55,176.52,5.6639]
[1747235362297,77.6433,176.55,176.51,5.6643]
[1747235362491,71.98,176.55,176.51,5.6643]
[1747235362691,77.6435,176.55,176.51,5.6643]
[1747235363597,71.98,176.55,176.51,5.6643]